[Event "Titled Tuesday Blitz February 14 Late 2023"]
[White "Davidson, Kevin"]
[Black "Romero Ruscalleda, Josep"]
[WhiteFideId "2056810"]
[BlackFideId "2231859"]
[WhiteElo "2154"]
[BlackElo "2160"]
[Result "0-1"]
[Round "02"]
[TimeControl "180+2"]
[Date "2023.02.14"]
[WhiteClock "0:00:01"]
[BlackClock "0:01:00"]

1. e4 {[%clk 0:02:32]}  g6 {[%clk 0:03:00]} 2. d4 {[%clk 0:02:32]}  Bg7 {[%clk 0:03:01]} 3. Nc3 {[%clk 0:02:32]}  d6 {[%clk 0:03:02]} 4. f4 {[%clk 0:02:25]}  a6 {[%clk 0:03:02]} 5. Nf3 {[%clk 0:02:15]}  b5 {[%clk 0:02:59]} 6. Bd3 {[%clk 0:02:15]}  Bb7 {[%clk 0:02:55]} 7. a4 {[%clk 0:02:15]}  b4 {[%clk 0:02:54]} 8. Ne2 {[%clk 0:02:15]}  Nf6 {[%clk 0:02:51]} 9. e5 {[%clk 0:02:14]}  Nd5 {[%clk 0:02:49]} 10. O-O {[%clk 0:02:13]}  e6 {[%clk 0:02:47]} 11. c3 {[%clk 0:02:08]}  bxc3 {[%clk 0:02:45]} 12. bxc3 {[%clk 0:02:09]}  O-O {[%clk 0:02:43]} 13. Rb1 {[%clk 0:02:06]}  Qc8 {[%clk 0:02:31]} 14. Qe1 {[%clk 0:02:05]}  c5 {[%clk 0:02:25]} 15. Ng5 {[%clk 0:01:55]}  cxd4 {[%clk 0:02:18]} 16. cxd4 {[%clk 0:01:54]}  Nc6 {[%clk 0:02:02]} 17. Qh4 {[%clk 0:01:45]}  h6 {[%clk 0:01:58]} 18. Ne4 {[%clk 0:01:45]}  dxe5 {[%clk 0:01:57]} 19. fxe5 {[%clk 0:01:45]}  Qd7 {[%clk 0:01:38]} 20. Nc5 {[%clk 0:01:43]}  Qe7 {[%clk 0:01:33]} 21. Qxe7 {[%clk 0:01:40]}  Ncxe7 {[%clk 0:01:32]} 22. Rxb7 {[%clk 0:01:35]}  Rfc8 {[%clk 0:01:22]} 23. Bxa6 {[%clk 0:01:13]}  Rxc5 {[%clk 0:01:17]} 24. dxc5 {[%clk 0:01:13]}  Rxa6 {[%clk 0:01:17]} 25. Nf4 {[%clk 0:00:54]}  Rxa4 {[%clk 0:01:15]} 26. Nxd5 {[%clk 0:00:53]}  Nxd5 {[%clk 0:01:15]} 27. Bb2 {[%clk 0:00:34]}  Nf4 {[%clk 0:01:06]} 28. c6 {[%clk 0:00:22]}  Rc4 {[%clk 0:01:05]} 29. c7 {[%clk 0:00:17]}  Kh7 {[%clk 0:01:05]} 30. Rc1 {[%clk 0:00:15]}  Ne2+ {[%clk 0:01:04]} 31. Kf2 {[%clk 0:00:12]}  Nxc1 {[%clk 0:01:04]} 32. Bxc1 {[%clk 0:00:07]}  Rxc1 {[%clk 0:01:04]} 33. Ke3 {[%clk 0:00:03]}  Bxe5 {[%clk 0:01:03]} 34. c8=Q {[%clk 0:00:04]}  Rxc8 {[%clk 0:01:03]} 35. Rxf7+ {[%clk 0:00:04]}  Bg7 {[%clk 0:01:03]} 36. Re7 {[%clk 0:00:03]}  e5 {[%clk 0:01:03]} 37. h4 {[%clk 0:00:01]}  Rc3+ {[%clk 0:01:00]} 0-1


[Site "https://www.chess.com"]

[Event "Titled Tuesday Blitz February 14 Late 2023"]
[White "Martic, Ivan"]
[Black "Curtis, John"]
[WhiteFideId "929301"]
[BlackFideId "3200256"]
[WhiteElo "2301"]
[BlackElo "2292"]
[Result "1-0"]
[Round "02"]
[TimeControl "180+2"]
[Date "2023.02.14"]
[WhiteClock "0:01:06"]
[BlackClock "0:00:01"]

1. d4 {[%clk 0:03:00]}  d5 {[%clk 0:02:59]} 2. c4 {[%clk 0:03:00]}  e6 {[%clk 0:02:56]} 3. Nc3 {[%clk 0:02:59]}  Nf6 {[%clk 0:02:57]} 4. cxd5 {[%clk 0:02:52]}  exd5 {[%clk 0:02:56]} 5. Bg5 {[%clk 0:02:52]}  c6 {[%clk 0:02:55]} 6. e3 {[%clk 0:02:52]}  Be7 {[%clk 0:02:52]} 7. Bd3 {[%clk 0:02:51]}  Bg4 {[%clk 0:02:50]} 8. f3 {[%clk 0:02:50]}  Bc8 {[%clk 0:02:49]} 9. Nge2 {[%clk 0:02:48]}  Nh5 {[%clk 0:02:48]} 10. Bxe7 {[%clk 0:02:46]}  Qxe7 {[%clk 0:02:48]} 11. Qd2 {[%clk 0:02:42]}  Qh4+ {[%clk 0:02:47]} 12. g3 {[%clk 0:02:43]}  Qe7 {[%clk 0:02:45]} 13. O-O-O {[%clk 0:02:39]}  O-O {[%clk 0:02:41]} 14. Nf4 {[%clk 0:02:39]}  Nxf4 {[%clk 0:02:39]} 15. gxf4 {[%clk 0:02:40]}  f5 {[%clk 0:02:34]} 16. Rhg1 {[%clk 0:02:37]}  Nd7 {[%clk 0:02:32]} 17. Rg5 {[%clk 0:02:34]}  Nb6 {[%clk 0:02:06]} 18. Rdg1 {[%clk 0:02:32]}  Rf7 {[%clk 0:02:02]} 19. h4 {[%clk 0:02:31]}  Be6 {[%clk 0:02:01]} 20. h5 {[%clk 0:02:31]}  Re8 {[%clk 0:01:48]} 21. Qg2 {[%clk 0:02:28]}  Kh8 {[%clk 0:01:41]} 22. Kb1 {[%clk 0:02:26]}  Nd7 {[%clk 0:01:29]} 23. Ne2 {[%clk 0:02:17]}  Nf8 {[%clk 0:01:24]} 24. Ng3 {[%clk 0:01:51]}  g6 {[%clk 0:01:18]} 25. hxg6 {[%clk 0:01:50]}  hxg6 {[%clk 0:01:17]} 26. Rh1+ {[%clk 0:01:50]}  Rh7 {[%clk 0:01:17]} 27. Nf1 {[%clk 0:01:39]}  Rxh1 {[%clk 0:01:16]} 28. Qxh1+ {[%clk 0:01:40]}  Qh7 {[%clk 0:01:03]} 29. Qg1 {[%clk 0:01:40]}  Bf7 {[%clk 0:00:57]} 30. Rg2 {[%clk 0:01:39]}  Kg8 {[%clk 0:00:38]} 31. Ng3 {[%clk 0:01:37]}  Qg7 {[%clk 0:00:18]} 32. Nxf5 {[%clk 0:01:36]}  Qf6 {[%clk 0:00:18]} 33. Nh6+ {[%clk 0:01:35]}  Kg7 {[%clk 0:00:18]} 34. Ng4 {[%clk 0:01:34]}  Qe7 {[%clk 0:00:16]} 35. Ne5 {[%clk 0:01:33]}  Qf6 {[%clk 0:00:11]} 36. f5 {[%clk 0:01:32]}  Rxe5 {[%clk 0:00:09]} 37. dxe5 {[%clk 0:01:29]}  Qxe5 {[%clk 0:00:08]} 38. fxg6 {[%clk 0:01:24]}  Bg8 {[%clk 0:00:08]} 39. Qe1 {[%clk 0:01:13]}  Ne6 {[%clk 0:00:05]} 40. Qc3 {[%clk 0:01:07]}  Qxc3 {[%clk 0:00:04]} 41. bxc3 {[%clk 0:01:08]}  Nc5 {[%clk 0:00:04]} 42. Bc2 {[%clk 0:01:08]}  b5 {[%clk 0:00:02]} 43. f4 {[%clk 0:01:07]}  Nd7 {[%clk 0:00:01]} 44. Kb2 {[%clk 0:01:06]} 1-0


[Site "https://www.chess.com"]

[Event "Titled Tuesday Blitz February 14 Late 2023"]
[White "Sabar, Ethmane Daouda"]
[Black "Goncalves, Davi Sulzbacher"]
[WhiteFideId "19600097"]
[BlackFideId "2154510"]
[WhiteElo "2040"]
[BlackElo "2282"]
[Result "1-0"]
[Round "02"]
[TimeControl "180+2"]
[Date "2023.02.14"]
[WhiteClock "0:02:11"]
[BlackClock "0:01:42"]

1. e4 {[%clk 0:03:00]}  c5 {[%clk 0:02:59]} 2. a3 {[%clk 0:03:00]}  d5 {[%clk 0:02:59]} 3. exd5 {[%clk 0:02:57]}  Qxd5 {[%clk 0:02:59]} 4. Nf3 {[%clk 0:02:58]}  Bg4 {[%clk 0:02:58]} 5. Nc3 {[%clk 0:02:52]}  Qe6+ {[%clk 0:02:57]} 6. Qe2 {[%clk 0:02:45]}  Bxf3 {[%clk 0:02:46]} 7. Qxe6 {[%clk 0:02:45]}  fxe6 {[%clk 0:02:46]} 8. gxf3 {[%clk 0:02:45]}  Nc6 {[%clk 0:02:45]} 9. Bb5 {[%clk 0:02:46]}  Kd7 {[%clk 0:02:37]} 10. Ne4 {[%clk 0:02:44]}  b6 {[%clk 0:02:23]} 11. Ng5 {[%clk 0:02:43]}  Nf6 {[%clk 0:02:05]} 12. Nf7 {[%clk 0:02:41]}  Kc7 {[%clk 0:01:54]} 13. Bxc6 {[%clk 0:02:39]}  Kxc6 {[%clk 0:01:52]} 14. Nxh8 {[%clk 0:02:40]}  Kd5 {[%clk 0:01:41]} 15. Nf7 {[%clk 0:02:39]}  h6 {[%clk 0:01:41]} 16. f4 {[%clk 0:02:19]}  g5 {[%clk 0:01:41]} 17. fxg5 {[%clk 0:02:15]}  h5 {[%clk 0:01:41]} 18. gxf6 {[%clk 0:02:11]}  exf6 {[%clk 0:01:42]} 1-0


[Site "https://www.chess.com"]

[Event "Titled Tuesday Blitz February 14 Late 2023"]
[White "Marcolino, Daniel Mattos"]
[Black "Mujumdar, Sameer"]
[WhiteFideId "2106841"]
[BlackFideId "2029707"]
[WhiteElo "2006"]
[BlackElo "1992"]
[Result "0-1"]
[Round "02"]
[TimeControl "180+2"]
[Date "2023.02.14"]
[WhiteClock "0:00:03"]
[BlackClock "0:00:22"]

1. d4 {[%clk 0:03:00]}  Nf6 {[%clk 0:02:59]} 2. Nf3 {[%clk 0:03:00]}  g6 {[%clk 0:02:53]} 3. g3 {[%clk 0:03:00]}  Bg7 {[%clk 0:02:54]} 4. Bg2 {[%clk 0:02:59]}  O-O {[%clk 0:02:55]} 5. O-O {[%clk 0:03:00]}  d6 {[%clk 0:02:50]} 6. b3 {[%clk 0:02:59]}  c6 {[%clk 0:02:45]} 7. Bb2 {[%clk 0:03:00]}  Qa5 {[%clk 0:02:44]} 8. Nbd2 {[%clk 0:02:59]}  Qh5 {[%clk 0:02:40]} 9. e4 {[%clk 0:02:52]}  Bg4 {[%clk 0:02:39]} 10. Re1 {[%clk 0:02:52]}  Nbd7 {[%clk 0:02:39]} 11. Qe2 {[%clk 0:02:52]}  e5 {[%clk 0:02:37]} 12. Qe3 {[%clk 0:02:19]}  Rfe8 {[%clk 0:02:27]} 13. dxe5 {[%clk 0:02:13]}  dxe5 {[%clk 0:02:17]} 14. a4 {[%clk 0:02:07]}  Bh6 {[%clk 0:02:02]} 15. Qc3 {[%clk 0:01:46]}  Rad8 {[%clk 0:01:50]} 16. Nc4 {[%clk 0:01:28]}  Nf8 {[%clk 0:01:13]} 17. Nfxe5 {[%clk 0:01:02]}  Bg7 {[%clk 0:01:08]} 18. Qb4 {[%clk 0:00:42]}  Bh3 {[%clk 0:00:54]} 19. Qxb7 {[%clk 0:00:36]}  Bxg2 {[%clk 0:00:53]} 20. Kxg2 {[%clk 0:00:36]}  Re6 {[%clk 0:00:41]} 21. Qxf7+ {[%clk 0:00:30]}  Kh8 {[%clk 0:00:41]} 22. Qxa7 {[%clk 0:00:23]}  Kg8 {[%clk 0:00:37]} 23. Qa5 {[%clk 0:00:09]}  Rde8 {[%clk 0:00:37]} 24. Nf3 {[%clk 0:00:08]}  Qg4 {[%clk 0:00:35]} 25. Rad1 {[%clk 0:00:06]}  Rxe4 {[%clk 0:00:33]} 26. Rxe4 {[%clk 0:00:06]}  Nxe4 {[%clk 0:00:29]} 27. Ne3 {[%clk 0:00:06]}  Qe6 {[%clk 0:00:26]} 28. Bxg7 {[%clk 0:00:06]}  Kxg7 {[%clk 0:00:27]} 29. Qb4 {[%clk 0:00:05]}  h6 {[%clk 0:00:20]} 30. Qd4+ {[%clk 0:00:04]}  Kh7 {[%clk 0:00:20]} 31. Qb2 {[%clk 0:00:01]}  Nd7 {[%clk 0:00:16]} 32. Nc4 {[%clk 0:00:02]}  Ndf6 {[%clk 0:00:16]} 33. Qd4 {[%clk 0:00:02]}  Qg4 {[%clk 0:00:16]} 34. h3 {[%clk 0:00:02]}  Qf5 {[%clk 0:00:16]} 35. g4 {[%clk 0:00:02]}  Nxg4 {[%clk 0:00:16]} 36. hxg4 {[%clk 0:00:01]}  Qxg4+ {[%clk 0:00:17]} 37. Kf1 {[%clk 0:00:02]}  Qh3+ {[%clk 0:00:17]} 38. Ke2 {[%clk 0:00:01]}  Nc3+ {[%clk 0:00:15]} 39. Kd2 {[%clk 0:00:01]}  Nxd1 {[%clk 0:00:15]} 40. Kxd1 {[%clk 0:00:02]}  Qxf3+ {[%clk 0:00:15]} 41. Kc1 {[%clk 0:00:02]}  Qd5 {[%clk 0:00:16]} 42. Qxd5 {[%clk 0:00:02]}  cxd5 {[%clk 0:00:17]} 43. Nd6 {[%clk 0:00:01]}  Re6 {[%clk 0:00:18]} 44. Nb5 {[%clk 0:00:01]}  h5 {[%clk 0:00:19]} 45. a5 {[%clk 0:00:02]}  h4 {[%clk 0:00:20]} 46. a6 {[%clk 0:00:03]}  Rxa6 {[%clk 0:00:20]} 47. Nc7 {[%clk 0:00:03]}  Rc6 {[%clk 0:00:20]} 48. Nxd5 {[%clk 0:00:03]}  h3 {[%clk 0:00:20]} 49. Nf6+ {[%clk 0:00:02]}  Rxf6 {[%clk 0:00:20]} 50. b4 {[%clk 0:00:03]}  h2 {[%clk 0:00:21]} 51. b5 {[%clk 0:00:03]}  h1=Q+ {[%clk 0:00:22]} 0-1


[Site "https://www.chess.com"]

[Event "Titled Tuesday Blitz February 14 Late 2023"]
[White "Poeta, Caio Medeiros"]
[Black "Jesusesmifuerza"]
[WhiteFideId "2142660"]
[WhiteElo "2088"]
[BlackElo "2001"]
[Result "1-0"]
[Round "02"]
[TimeControl "180+2"]
[Date "2023.02.14"]
[WhiteClock "0:02:55"]
[BlackClock "0:02:34"]

1. d4 {[%clk 0:03:00]}  d5 {[%clk 0:02:59]} 2. c4 {[%clk 0:03:00]}  e6 {[%clk 0:03:00]} 3. Nf3 {[%clk 0:03:00]}  a6 {[%clk 0:03:00]} 4. Nbd2 {[%clk 0:02:58]}  Nf6 {[%clk 0:02:53]} 5. g3 {[%clk 0:02:58]}  dxc4 {[%clk 0:02:46]} 6. Nxc4 {[%clk 0:02:58]}  b5 {[%clk 0:02:46]} 7. Ncd2 {[%clk 0:02:57]}  Bb7 {[%clk 0:02:47]} 8. Bg2 {[%clk 0:02:58]}  c5 {[%clk 0:02:47]} 9. O-O {[%clk 0:02:59]}  cxd4 {[%clk 0:02:45]} 10. Nb3 {[%clk 0:02:56]}  Bc5 {[%clk 0:02:34]} 11. Nxc5 {[%clk 0:02:55]} 1-0


[Site "https://www.chess.com"]

[Event "Titled Tuesday Blitz February 14 Late 2023"]
[White "Vargas, Mauricio"]
[Black "CheckBits"]
[WhiteFideId "4404572"]
[WhiteElo "2035"]
[BlackElo "2468"]
[Result "0-1"]
[Round "02"]
[TimeControl "180+2"]
[Date "2023.02.14"]
[WhiteClock "0:00:04"]
[BlackClock "0:00:29"]

1. e4 {[%clk 0:03:00]}  e5 {[%clk 0:02:51]} 2. Nf3 {[%clk 0:02:14]}  Nc6 {[%clk 0:02:50]} 3. Bc4 {[%clk 0:02:12]}  Bc5 {[%clk 0:02:49]} 4. O-O {[%clk 0:02:10]}  Nf6 {[%clk 0:02:49]} 5. d4 {[%clk 0:02:07]}  Bxd4 {[%clk 0:02:20]} 6. Nxd4 {[%clk 0:01:59]}  Nxd4 {[%clk 0:02:19]} 7. f4 {[%clk 0:01:56]}  d6 {[%clk 0:02:16]} 8. fxe5 {[%clk 0:01:52]}  dxe5 {[%clk 0:02:16]} 9. Bg5 {[%clk 0:01:50]}  Qe7 {[%clk 0:01:28]} 10. Nc3 {[%clk 0:01:48]}  c6 {[%clk 0:01:27]} 11. Bb3 {[%clk 0:01:24]}  Be6 {[%clk 0:01:24]} 12. Rf2 {[%clk 0:01:07]}  O-O-O {[%clk 0:00:50]} 13. Ba4 {[%clk 0:01:03]}  Nb3 {[%clk 0:00:39]} 14. Qe1 {[%clk 0:00:50]}  Nxa1 {[%clk 0:00:39]} 15. Qxa1 {[%clk 0:00:51]}  Qc5 {[%clk 0:00:39]} 16. Qf1 {[%clk 0:00:45]}  Bc4 {[%clk 0:00:38]} 17. Qe1 {[%clk 0:00:44]}  Rd6 {[%clk 0:00:38]} 18. Be3 {[%clk 0:00:41]}  Qa5 {[%clk 0:00:38]} 19. a3 {[%clk 0:00:32]}  Rhd8 {[%clk 0:00:37]} 20. b4 {[%clk 0:00:29]}  Qa6 {[%clk 0:00:38]} 21. Bc5 {[%clk 0:00:23]}  R6d7 {[%clk 0:00:36]} 22. Qe3 {[%clk 0:00:14]}  b6 {[%clk 0:00:35]} 23. b5 {[%clk 0:00:09]}  Qa5 {[%clk 0:00:33]} 24. Bb4 {[%clk 0:00:07]}  Rd1+ {[%clk 0:00:30]} 25. Nxd1 {[%clk 0:00:05]}  Rxd1+ {[%clk 0:00:29]} 26. Rf1 {[%clk 0:00:04]}  Rxf1# {[%clk 0:00:29]} 0-1


[Site "https://www.chess.com"]

[Event "Titled Tuesday Blitz February 14 Late 2023"]
[White "Dinu, Dumitru-Daniel"]
[Black "Manu_ChessExcelsior"]
[WhiteFideId "1208403"]
[WhiteElo "2203"]
[BlackElo "1985"]
[Result "1-0"]
[Round "02"]
[TimeControl "180+2"]
[Date "2023.02.14"]
[WhiteClock "0:00:16"]
[BlackClock "0:00:48"]

1. e4 {[%clk 0:03:00]}  e5 {[%clk 0:02:59]} 2. Nf3 {[%clk 0:03:00]}  Nc6 {[%clk 0:02:59]} 3. Bb5 {[%clk 0:03:00]}  a6 {[%clk 0:02:59]} 4. Ba4 {[%clk 0:03:00]}  Nf6 {[%clk 0:03:00]} 5. d3 {[%clk 0:02:59]}  b5 {[%clk 0:02:56]} 6. Bb3 {[%clk 0:02:59]}  d6 {[%clk 0:02:56]} 7. c3 {[%clk 0:02:58]}  Bb7 {[%clk 0:02:48]} 8. O-O {[%clk 0:02:58]}  Be7 {[%clk 0:02:47]} 9. Re1 {[%clk 0:02:58]}  O-O {[%clk 0:02:47]} 10. Nbd2 {[%clk 0:02:58]}  Na5 {[%clk 0:02:46]} 11. Bc2 {[%clk 0:02:59]}  c5 {[%clk 0:02:47]} 12. Nf1 {[%clk 0:02:59]}  Nc6 {[%clk 0:02:46]} 13. Ng3 {[%clk 0:02:58]}  Re8 {[%clk 0:02:46]} 14. Nf5 {[%clk 0:02:58]}  Bf8 {[%clk 0:02:46]} 15. Bg5 {[%clk 0:02:58]}  h6 {[%clk 0:02:44]} 16. Bh4 {[%clk 0:02:58]}  Bc8 {[%clk 0:02:42]} 17. Ne3 {[%clk 0:02:44]}  g5 {[%clk 0:02:16]} 18. Nxg5 {[%clk 0:02:42]}  hxg5 {[%clk 0:02:17]} 19. Bxg5 {[%clk 0:02:42]}  Bg7 {[%clk 0:02:14]} 20. Qf3 {[%clk 0:02:35]}  Re6 {[%clk 0:01:46]} 21. Bb3 {[%clk 0:02:22]}  c4 {[%clk 0:01:39]} 22. dxc4 {[%clk 0:02:20]}  Na5 {[%clk 0:01:36]} 23. cxb5 {[%clk 0:02:20]}  Nxb3 {[%clk 0:01:36]} 24. axb3 {[%clk 0:02:20]}  Bb7 {[%clk 0:01:33]} 25. Nf5 {[%clk 0:02:00]}  Qf8 {[%clk 0:01:32]} 26. bxa6 {[%clk 0:01:56]}  Rxa6 {[%clk 0:01:27]} 27. Rxa6 {[%clk 0:01:54]}  Bxa6 {[%clk 0:01:28]} 28. Qg3 {[%clk 0:01:45]}  Nh7 {[%clk 0:01:24]} 29. Bh6 {[%clk 0:01:22]}  Rg6 {[%clk 0:01:21]} 30. Bxg7 {[%clk 0:01:16]}  Rxg7 {[%clk 0:01:20]} 31. Qxg7+ {[%clk 0:01:10]}  Qxg7 {[%clk 0:01:21]} 32. Nxg7 {[%clk 0:01:10]}  Kxg7 {[%clk 0:01:22]} 33. Rd1 {[%clk 0:01:10]}  Bb7 {[%clk 0:01:15]} 34. f3 {[%clk 0:01:06]}  f5 {[%clk 0:01:14]} 35. Rxd6 {[%clk 0:00:57]}  Nf6 {[%clk 0:01:14]} 36. exf5 {[%clk 0:00:48]}  Kf7 {[%clk 0:01:11]} 37. Re6 {[%clk 0:00:43]}  Bd5 {[%clk 0:01:10]} 38. Rxe5 {[%clk 0:00:42]}  Bxb3 {[%clk 0:01:11]} 39. g4 {[%clk 0:00:39]}  Nd5 {[%clk 0:01:07]} 40. Kf2 {[%clk 0:00:31]}  Nf4 {[%clk 0:01:06]} 41. Kg3 {[%clk 0:00:29]}  Nd3 {[%clk 0:01:05]} 42. Rb5 {[%clk 0:00:28]}  Bc2 {[%clk 0:01:03]} 43. Rb7+ {[%clk 0:00:26]}  Kf6 {[%clk 0:01:03]} 44. h4 {[%clk 0:00:21]}  Bd1 {[%clk 0:01:02]} 45. Rd7 {[%clk 0:00:19]}  Be2 {[%clk 0:01:02]} 46. h5 {[%clk 0:00:16]}  Ne5 {[%clk 0:01:00]} 47. Rd6+ {[%clk 0:00:16]}  Kf7 {[%clk 0:01:00]} 48. Re6 {[%clk 0:00:16]}  Bxf3 {[%clk 0:00:48]} 49. Rxe5 {[%clk 0:00:16]} 1-0


[Site "https://www.chess.com"]

[Event "Titled Tuesday Blitz February 14 Late 2023"]
[White "Pichot, Alan"]
[Black "Yu, Yangyi"]
[WhiteFideId "110973"]
[BlackFideId "8603820"]
[WhiteElo "2638"]
[BlackElo "2729"]
[Result "0-1"]
[Round "03"]
[TimeControl "180+2"]
[Date "2023.02.14"]
[WhiteClock "0:00:39"]
[BlackClock "0:00:44"]

1. e4 {[%clk 0:02:57]}  e5 {[%clk 0:02:59]} 2. Nf3 {[%clk 0:02:57]}  Nc6 {[%clk 0:03:00]} 3. Bc4 {[%clk 0:02:57]}  Nf6 {[%clk 0:02:59]} 4. d3 {[%clk 0:02:57]}  Bc5 {[%clk 0:02:59]} 5. O-O {[%clk 0:02:52]}  O-O {[%clk 0:02:57]} 6. Nc3 {[%clk 0:02:51]}  h6 {[%clk 0:02:51]} 7. h3 {[%clk 0:02:51]}  a6 {[%clk 0:02:47]} 8. Be3 {[%clk 0:02:41]}  Bxe3 {[%clk 0:02:41]} 9. fxe3 {[%clk 0:02:42]}  d6 {[%clk 0:02:42]} 10. Nd2 {[%clk 0:02:35]}  Na5 {[%clk 0:02:38]} 11. Bb3 {[%clk 0:02:24]}  Nxb3 {[%clk 0:02:35]} 12. axb3 {[%clk 0:02:24]}  Be6 {[%clk 0:02:17]} 13. Qf3 {[%clk 0:02:24]}  c6 {[%clk 0:02:14]} 14. Rf2 {[%clk 0:02:18]}  b5 {[%clk 0:02:04]} 15. Raf1 {[%clk 0:02:17]}  Nd7 {[%clk 0:02:03]} 16. Qg3 {[%clk 0:02:15]}  Qg5 {[%clk 0:02:02]} 17. Kh2 {[%clk 0:01:58]}  a5 {[%clk 0:01:59]} 18. Nf3 {[%clk 0:01:48]}  Qxg3+ {[%clk 0:01:54]} 19. Kxg3 {[%clk 0:01:48]}  a4 {[%clk 0:01:52]} 20. b4 {[%clk 0:01:44]}  a3 {[%clk 0:01:47]} 21. b3 {[%clk 0:01:44]}  Rfb8 {[%clk 0:01:47]} 22. d4 {[%clk 0:01:39]}  f6 {[%clk 0:01:31]} 23. Na2 {[%clk 0:01:35]}  c5 {[%clk 0:01:29]} 24. bxc5 {[%clk 0:01:21]}  dxc5 {[%clk 0:01:30]} 25. Rd1 {[%clk 0:01:21]}  cxd4 {[%clk 0:01:16]} 26. exd4 {[%clk 0:01:21]}  exd4 {[%clk 0:01:12]} 27. Nxd4 {[%clk 0:01:21]}  Nc5 {[%clk 0:01:07]} 28. Re2 {[%clk 0:01:09]}  Rd8 {[%clk 0:00:56]} 29. Kf3 {[%clk 0:00:55]}  Nxb3 {[%clk 0:00:50]} 30. cxb3 {[%clk 0:00:48]}  Bxb3 {[%clk 0:00:49]} 31. Rd3 {[%clk 0:00:38]}  Bc4 {[%clk 0:00:48]} 32. Ke3 {[%clk 0:00:38]}  Bxd3 {[%clk 0:00:44]} 33. Kxd3 {[%clk 0:00:39]}  Ra4 {[%clk 0:00:44]} 0-1


[Site "https://www.chess.com"]

[Event "Titled Tuesday Blitz February 14 Late 2023"]
[White "Baskakov, Egor"]
[Black "Andreikin, Dmitry"]
[WhiteFideId "24197866"]
[BlackFideId "4158814"]
[WhiteElo "2215"]
[BlackElo "2729"]
[Result "0-1"]
[Round "03"]
[TimeControl "180+2"]
[Date "2023.02.14"]
[WhiteClock "0:00:04"]
[BlackClock "0:00:03"]

1. e4 {[%clk 0:03:00]}  c5 {[%clk 0:02:59]} 2. Nf3 {[%clk 0:03:00]}  e6 {[%clk 0:02:59]} 3. Be2 {[%clk 0:03:00]}  Nc6 {[%clk 0:02:56]} 4. c4 {[%clk 0:03:00]}  e5 {[%clk 0:02:53]} 5. Nc3 {[%clk 0:03:01]}  d6 {[%clk 0:02:53]} 6. O-O {[%clk 0:03:01]}  g6 {[%clk 0:02:52]} 7. d3 {[%clk 0:03:01]}  Bg7 {[%clk 0:02:52]} 8. Ne1 {[%clk 0:02:52]}  Nge7 {[%clk 0:02:51]} 9. f4 {[%clk 0:02:48]}  O-O {[%clk 0:02:50]} 10. Nc2 {[%clk 0:02:46]}  Be6 {[%clk 0:02:44]} 11. Be3 {[%clk 0:02:44]}  exf4 {[%clk 0:02:42]} 12. Bxf4 {[%clk 0:02:45]}  a6 {[%clk 0:02:40]} 13. Rb1 {[%clk 0:02:41]}  b5 {[%clk 0:02:40]} 14. Nd5 {[%clk 0:02:41]}  Nd4 {[%clk 0:02:24]} 15. Nxd4 {[%clk 0:02:38]}  Bxd4+ {[%clk 0:02:23]} 16. Kh1 {[%clk 0:02:39]}  bxc4 {[%clk 0:02:23]} 17. dxc4 {[%clk 0:02:38]}  Nc6 {[%clk 0:02:24]} 18. b4 {[%clk 0:02:33]}  Bxd5 {[%clk 0:02:21]} 19. cxd5 {[%clk 0:02:32]}  Ne5 {[%clk 0:02:19]} 20. bxc5 {[%clk 0:02:32]}  dxc5 {[%clk 0:02:11]} 21. Qa4 {[%clk 0:02:23]}  Qe7 {[%clk 0:02:06]} 22. Rb6 {[%clk 0:02:01]}  Rfb8 {[%clk 0:02:03]} 23. d6 {[%clk 0:01:51]}  Qe6 {[%clk 0:01:59]} 24. Rxa6 {[%clk 0:01:46]}  Rxa6 {[%clk 0:01:53]} 25. Qxa6 {[%clk 0:01:47]}  Rb2 {[%clk 0:01:38]} 26. Bxe5 {[%clk 0:01:46]}  Bxe5 {[%clk 0:01:36]} 27. Bc4 {[%clk 0:01:45]}  Qxd6 {[%clk 0:01:01]} 28. Qc8+ {[%clk 0:01:39]}  Qf8 {[%clk 0:00:56]} 29. Bxf7+ {[%clk 0:01:27]}  Kg7 {[%clk 0:00:55]} 30. Qd7 {[%clk 0:01:22]}  Qd6 {[%clk 0:00:50]} 31. Qa7 {[%clk 0:00:49]}  Qc7 {[%clk 0:00:38]} 32. Qa3 {[%clk 0:00:37]}  Bd4 {[%clk 0:00:12]} 33. Qf3 {[%clk 0:00:26]}  Rb6 {[%clk 0:00:09]} 34. Bxg6 {[%clk 0:00:14]}  hxg6 {[%clk 0:00:01]} 35. Qf8+ {[%clk 0:00:13]}  Kh7 {[%clk 0:00:02]} 36. Rf7+ {[%clk 0:00:13]}  Qxf7 {[%clk 0:00:02]} 37. Qxf7+ {[%clk 0:00:14]}  Bg7 {[%clk 0:00:03]} 38. h4 {[%clk 0:00:11]}  Rb4 {[%clk 0:00:03]} 39. e5 {[%clk 0:00:10]}  Rxh4+ {[%clk 0:00:03]} 40. Kg1 {[%clk 0:00:10]}  Re4 {[%clk 0:00:03]} 41. e6 {[%clk 0:00:10]}  Kh6 {[%clk 0:00:02]} 42. e7 {[%clk 0:00:06]}  Bd4+ {[%clk 0:00:01]} 43. Kf1 {[%clk 0:00:06]}  Rh4 {[%clk 0:00:01]} 44. e8=Q {[%clk 0:00:03]}  Rg4 {[%clk 0:00:02]} 45. Qef8+ {[%clk 0:00:02]}  Kh5 {[%clk 0:00:02]} 46. Qf3 {[%clk 0:00:03]}  Kg5 {[%clk 0:00:02]} 47. Q8f4+ {[%clk 0:00:03]}  Rxf4 {[%clk 0:00:02]} 48. Ke2 {[%clk 0:00:03]}  Rxf3 {[%clk 0:00:03]} 49. Kxf3 {[%clk 0:00:04]}  Kf5 {[%clk 0:00:03]} 0-1


[Site "https://www.chess.com"]